fUSD/lending_fUSD_20241107
["ID","MTS","AMOUNT","RATE_DAILY","PERIOD"]
[341529337,1730961102514,-485.24895245,0.00032895,4]
[341529338,1730961102523,-523.25,0.00032895,4]
[341529339,1730961102533,-500.0,0.00032895,4]
[341529340,1730961102542,-500.0,0.00032895,4]
[341529341,1730961102552,-812.78,0.00032895,4]
[341529342,1730961102562,-784.79,0.00032895,4]
[341529343,1730961102572,-1284.84,0.00032895,4]
[341529344,1730961102582,-1108.97,0.00032895,4]
[341529345,1730961102592,-998.86,0.00032895,4]
[341529346,1730961102602,-730.27,0.00032895,4]
[341529347,1730961102611,-1614.42,0.00032895,4]
[341529348,1730961102622,-1500.0,0.000329,30]
[341529349,1730961102632,-200.0,0.000329,12]
[341529350,1730961102643,-161.993503,0.00032936,2]
[341529351,1730961102653,-500.0,0.00032942,4]
[341529352,1730961102663,-4395.07,0.00032942,4]
[341529353,1730961102672,-1000.0,0.00032942,5]
[341529354,1730961102683,-1000.0,0.00032942,5]
[341529355,1730961102692,-1000.0,0.00032942,5]
[341529356,1730961102703,-1000.0,0.00032942,5]
[341529357,1730961102713,-18923.61297053,0.0003296,2]
[341529358,1730961102723,-1287.68009559,0.0003296,2]
[341529359,1730961102733,-167.59331874,0.0003296,2]
[341529360,1730961102742,-535.84,0.00032967,4]
[341529361,1730961102752,-1652.58,0.00032967,4]
[341529362,1730961102762,-3222.5,0.00032967,4]
[341529363,1730961102772,-761.9,0.00032967,4]
[341529364,1730961102782,-1280.16,0.00032967,4]
[341529365,1730961102793,-3972.2,0.00032967,4]
[341529366,1730961102803,-1871.91,0.00032967,4]
[341529367,1730961102812,-500.0,0.00032967,4]
[341529368,1730961102821,-1253.68,0.00032967,4]
[341529369,1730961102831,-623.53,0.00032967,4]
[341529370,1730961102841,-834.19,0.00032967,4]
[341529371,1730961102851,-1497.88,0.00032967,4]
[341529372,1730961102861,-890.29,0.00032967,4]
[341529373,1730961102871,-686.57,0.00032968,4]
[341529374,1730961102881,-490.483093,0.00032968,4]
[341529375,1730961102891,-157.950212,0.00032968,4]
[341529376,1730961102901,-716.43,0.00032968,4]
[341529377,1730961102911,-744.89,0.00032968,4]
[341529378,1730961102922,-12992.06,0.00032968,4]
[341529379,1730961102932,-953.15,0.00032968,4]
[341529380,1730961102941,-500.0,0.00032968,4]
[341529381,1730961102951,-305.034082,0.00032968,4]
[341529382,1730961102961,-2501.71,0.00032968,4]
[341529383,1730961102971,-1992.28,0.00032968,4]
[341529384,1730961102981,-9233.39,0.00032968,4]
[341529385,1730961102991,-1256.1,0.00032968,4]
[341529386,1730961103000,-1525.28,0.00032968,4]
[341529387,1730961103010,-1354.52,0.00032968,4]
[341529388,1730961103020,-607.76,0.00032968,4]
[341529389,1730961103030,-684.49,0.00032968,4]
[341529390,1730961103040,-2296.07,0.00032968,4]
[341529391,1730961103049,-1681.89,0.00032968,4]
[341529392,1730961103059,-500.0,0.00032968,4]
[341529393,1730961103068,-1507.57,0.00032968,4]
[341529394,1730961103079,-6403.43,0.00032968,4]
[341529395,1730961103089,-2353.07,0.00032968,4]
[341529396,1730961103099,-917.29,0.00032968,4]
[341529397,1730961103109,-1421.63,0.00032968,4]
[341529398,1730961103118,-829.37,0.00032968,4]
[341529399,1730961103128,-929.12,0.00032968,4]
[341529400,1730961103138,-1552.98,0.00032968,4]
[341529401,1730961103147,-1793.26,0.00032968,4]
[341529402,1730961103157,-3109.19,0.00032968,4]
[341529403,1730961103167,-500.0,0.00032969,4]
[341529404,1730961103176,-500.0,0.00032969,4]
[341529405,1730961103186,-1062.64,0.00032969,4]
[341529406,1730961103195,-500.0,0.00032969,4]
[341529407,1730961103204,-500.0,0.00032969,4]
[341529408,1730961103214,-500.0,0.00032969,4]
[341529409,1730961103224,-500.0,0.00032969,4]
[341529410,1730961103234,-300.4,0.00032969,4]
[341529411,1730961103244,-500.0,0.00032969,4]
[341529412,1730961103253,-500.0,0.00032969,4]
[341529413,1730961103478,-789.68,0.00032969,4]
[341529414,1730961103489,-181.83725193,0.00032969,4]
[341529415,1730961103498,-873.49,0.00032969,4]
[341529416,1730961103508,-778.93,0.00032969,4]
[341529417,1730961103517,-638.63,0.00032969,4]
[341529418,1730961103526,-754.67,0.00032969,4]
[341529419,1730961103535,-1022.26,0.00032969,4]
[341529420,1730961103547,-500.0,0.00032969,4]
[341529421,1730961103557,-500.0,0.00032969,4]
[341529422,1730961103566,-783.28,0.00032969,4]
[341529423,1730961103575,-500.0,0.00032969,4]
[341529424,1730961103584,-500.0,0.00032969,4]
[341529425,1730961103594,-785.25,0.00032969,4]
[341529426,1730961103603,-1035.01,0.00032969,4]
[341529427,1730961103612,-789.56,0.00032969,4]
[341529428,1730961103621,-500.0,0.00032969,4]
[341529429,1730961103630,-500.0,0.00032969,4]
[341529430,1730961103640,-997.76,0.00032969,4]
[341529431,1730961103650,-1292.97,0.00032969,4]
[341529432,1730961103660,-664.75,0.00032969,4]
[341529433,1730961103669,-1262.28,0.00032969,4]
[341529434,1730961103679,-500.0,0.00032969,4]
[341529435,1730961103688,-500.0,0.00032969,4]
[341529436,1730961103698,-500.0,0.00032969,4]
[341529437,1730961103707,-500.0,0.00032969,4]
[341529438,1730961103717,-1793.51,0.00032969,4]
[341529439,1730961103726,-500.0,0.00032969,4]
[341529440,1730961103735,-575.61,0.00032969,4]
[341529441,1730961103745,-928.68,0.00032969,4]
[341529442,1730961103754,-801.38,0.00032969,4]
[341529443,1730961103764,-510.88019919,0.00032969,4]
[341529444,1730961103774,-500.0,0.00032969,4]
[341529445,1730961103783,-986.36,0.00032969,4]
[341529446,1730961103794,-500.0,0.00032969,4]
[341529447,1730961103804,-500.0,0.00032969,4]
[341529448,1730961103814,-647.28,0.00032969,4]
[341529449,1730961103823,-636.24,0.00032969,4]
[341529450,1730961103833,-500.0,0.00032969,4]
[341529451,1730961103844,-720.15,0.00032969,4]
[341529452,1730961103853,-500.0,0.00032969,4]
[341529453,1730961103862,-511.47,0.00032969,4]
[341529454,1730961103872,-500.0,0.00032969,4]
[341529455,1730961103881,-500.0,0.00032969,4]
[341529456,1730961103891,-500.0,0.00032969,4]
[341529457,1730961103900,-500.0,0.00032969,4]
[341529458,1730961103910,-500.0,0.00032969,4]
[341529459,1730961103920,-500.0,0.00032969,4]
[341529460,1730961103929,-500.0,0.00032969,4]
[341529461,1730961103939,-865.59,0.00032969,4]
[341529462,1730961103948,-500.0,0.00032969,4]
[341529463,1730961103957,-664.99,0.00032969,4]
[341529464,1730961103967,-1144.25,0.00032969,4]
[341529465,1730961103976,-500.0,0.00032969,4]
[341529466,1730961103985,-500.0,0.00032969,4]
[341529467,1730961103994,-500.0,0.00032969,4]
[341529468,1730961104004,-508.20050735,0.00032969,4]
[341529469,1730961104014,-500.0,0.00032969,4]
[341529470,1730961104023,-500.0,0.00032969,4]
[341529471,1730961104032,-500.0,0.00032969,4]
[341529472,1730961104044,-500.0,0.00032969,4]
[341529473,1730961104053,-500.0,0.00032969,4]
[341529474,1730961104062,-500.0,0.00032969,4]
[341529475,1730961104072,-658.49,0.00032969,4]
[341529476,1730961104081,-518.32820252,0.00032969,4]
[341529477,1730961104091,-500.0,0.00032969,4]
[341529478,1730961104101,-523.68,0.00032969,4]
[341529479,1730961104111,-522.78412302,0.00032969,4]
[341529480,1730961104120,-1072.83,0.00032969,4]
[341529481,1730961104130,-168.80770514,0.00032969,4]
[341529482,1730961104140,-676.42,0.00032969,4]
[341529483,1730961104149,-502.65342417,0.00032969,4]
[341529484,1730961104159,-1023.87,0.00032969,4]
[341529485,1730961104168,-504.42,0.00032969,4]
[341529486,1730961104177,-500.0,0.00032969,4]
[341529487,1730961104186,-500.18,0.00032969,4]
[341529488,1730961104196,-500.0,0.00032969,4]
[341529489,1730961104206,-1499.29,0.00032969,4]
[341529490,1730961104215,-500.0,0.00032969,4]
[341529491,1730961104225,-1699.2,0.00032969,4]
[341529492,1730961104234,-1035.15,0.00032969,4]
[341529493,1730961104243,-500.0,0.00032969,4]
[341529494,1730961104252,-500.0,0.00032969,4]
[341529495,1730961104262,-500.0,0.00032969,4]
[341529496,1730961104271,-806.26,0.00032969,4]
[341529497,1730961104280,-1436.73,0.00032969,4]
[341529498,1730961104290,-942.73,0.00032969,4]
[341529499,1730961104300,-500.0,0.00032969,4]
[341529500,1730961104309,-500.0,0.00032969,4]
[341529501,1730961104319,-500.0,0.00032969,4]
[341529502,1730961104332,-500.0,0.00032969,4]
[341529503,1730961104342,-1648.38,0.00032969,4]
[341529504,1730961104351,-500.0,0.00032969,4]
[341529505,1730961104361,-500.0,0.00032969,4]
[341529506,1730961104373,-500.0,0.00032969,4]
[341529507,1730961104383,-500.0,0.00032969,4]
[341529508,1730961104394,-956.17,0.00032969,4]
[341529509,1730961104403,-500.0,0.00032969,4]
[341529510,1730961104413,-600.96,0.00032969,4]
[341529511,1730961104422,-500.0,0.00032969,4]
[341529512,1730961104431,-500.0,0.00032969,4]
[341529513,1730961104440,-500.0,0.00032969,4]
[341529514,1730961104450,-500.0,0.00032969,4]
[341529515,1730961104459,-643.67,0.00032969,4]
[341529516,1730961104469,-500.0,0.00032969,4]
[341529517,1730961104478,-582.3,0.00032969,4]
[341529518,1730961104488,-500.0,0.00032969,4]
[341529519,1730961104498,-500.0,0.00032969,4]
[341529520,1730961104507,-694.57,0.00032969,4]
[341529521,1730961104517,-1084.49,0.00032969,4]
[341529522,1730961104526,-500.0,0.00032969,4]
[341529523,1730961104536,-1194.39,0.00032969,4]
[341529524,1730961104546,-500.0,0.00032969,4]
[341529525,1730961104555,-564.45,0.00032969,4]
[341529526,1730961104565,-1022.68,0.00032969,4]
[341529527,1730961104574,-1399.22,0.00032969,4]
[341529528,1730961104583,-500.0,0.00032969,4]
[341529529,1730961104593,-568.29,0.00032969,4]
[341529530,1730961104603,-486.120612,0.00032969,4]
[341529531,1730961104613,-513.58448371,0.00032969,4]
[341529532,1730961104625,-500.0,0.00032969,4]
[341529533,1730961104635,-500.0,0.00032969,4]
[341529534,1730961104645,-548.89,0.00032969,4]
[341529535,1730961104656,-769.97,0.00032969,4]
[341529536,1730961104666,-500.0,0.00032969,4]
[341529537,1730961104676,-1057.44,0.00032969,4]
[341529538,1730961104686,-822.77,0.00032969,4]
[341529539,1730961104695,-515.85,0.00032969,4]
[341529540,1730961104706,-500.0,0.00032969,4]
[341529541,1730961104717,-500.0,0.00032969,4]
[341529542,1730961104728,-633.44,0.00032969,4]
[341529543,1730961104738,-754.45,0.00032969,4]
[341529544,1730961104748,-500.0,0.00032969,4]
[341529545,1730961104758,-1047.0,0.00032969,4]
[341529546,1730961104768,-500.0,0.00032969,4]
[341529547,1730961104777,-785.91,0.00032969,4]
[341529548,1730961104787,-500.0,0.00032969,4]
[341529549,1730961104797,-1070.66,0.00032969,4]
[341529550,1730961104806,-500.0,0.00032969,4]
[341529551,1730961104816,-500.0,0.00032969,4]
[341529552,1730961104827,-556.01,0.00032969,4]
[341529553,1730961104837,-1739.43,0.00032969,4]
[341529554,1730961104846,-885.67,0.00032969,4]
[341529555,1730961104856,-500.0,0.00032969,4]
[341529556,1730961104866,-1049.05,0.00032969,4]
[341529557,1730961104877,-876.89,0.00032969,4]
[341529558,1730961104887,-500.0,0.00032969,4]
[341529559,1730961104896,-2272.02,0.00032969,4]
[341529560,1730961104906,-599.49,0.00032969,4]
[341529561,1730961104916,-500.0,0.00032969,4]
[341529562,1730961104926,-500.0,0.00032969,4]
[341529563,1730961104936,-695.37,0.00032969,4]
[341529564,1730961104946,-701.48,0.00032969,4]
[341529565,1730961104956,-500.0,0.00032969,4]
[341529566,1730961104966,-271.44640965,0.00032969,4]
[341529567,1730961104977,-837.83,0.00032969,4]
[341529568,1730961104986,-537.88,0.00032969,4]
[341529569,1730961104996,-732.38,0.00032969,4]
[341529570,1730961105007,-802.13,0.00032969,4]
[341529571,1730961105017,-250.22442811,0.00032969,4]
[341529572,1730961105027,-500.0,0.00032969,4]
[341529573,1730961105037,-500.0,0.00032969,4]
[341529574,1730961105047,-500.0,0.00032969,4]
[341529575,1730961105057,-6029.66,0.00032969,4]
[341529576,1730961105067,-500.0,0.00032969,4]
[341529577,1730961105077,-500.0,0.00032969,4]
[341529578,1730961105087,-500.0,0.00032969,4]
[341529579,1730961105096,-613.07,0.00032969,4]
[341529580,1730961105107,-827.06,0.00032969,4]
[341529581,1730961105117,-500.0,0.00032969,4]
[341529582,1730961105126,-602.82,0.00032969,4]
[341529583,1730961105136,-632.63627467,0.00032969,4]
[341529584,1730961105145,-3100.54,0.00032969,4]
[341529585,1730961105156,-551.3,0.00032969,4]
[341529586,1730961105165,-1622.88,0.00032969,4]
[341529587,1730961105175,-912.13,0.00032969,4]
[341529588,1730961105184,-1161.01,0.00032969,4]
[341529589,1730961105194,-500.0,0.00032969,4]
[341529590,1730961105204,-1653.17,0.00032969,4]
[341529591,1730961105213,-9653.6,0.00032969,4]
[341529592,1730961105223,-1878.44,0.00032969,4]
[341529593,1730961105232,-500.0,0.00032969,4]
[341529594,1730961105242,-1264.12,0.00032969,4]
[341529595,1730961105252,-500.0,0.00032969,4]
[341529596,1730961105261,-500.0,0.00032969,4]
[341529597,1730961105270,-500.0,0.00032969,4]
[341529598,1730961105279,-628.6,0.00032969,4]
[341529599,1730961105289,-1663.58,0.00032969,4]
[341529600,1730961105300,-506.86,0.00032969,4]
[341529601,1730961105310,-1375.47,0.00032969,4]
[341529602,1730961105320,-937.21,0.00032969,4]
[341529603,1730961105335,-3401.2,0.00032969,4]
[341529604,1730961105345,-1086.05,0.00032969,4]
[341529605,1730961105355,-930.04,0.00032969,4]
[341529606,1730961105364,-500.0,0.00032969,4]
[341529607,1730961105374,-448.29048731,0.00032969,4]
[341529608,1730961105384,-1382.77,0.00032969,4]
[341529609,1730961105394,-500.0,0.00032969,4]
[341529610,1730961105404,-1166.68,0.00032969,4]
[341529611,1730961105414,-500.0,0.00032969,4]
[341529612,1730961105424,-500.0,0.00032969,4]
[341529613,1730961105433,-2191.16,0.00032969,4]
[341529614,1730961105442,-500.0,0.00032969,4]
[341529615,1730961105452,-1013.73,0.00032969,4]
[341529616,1730961105461,-500.0,0.00032969,4]
[341529617,1730961105471,-2809.55,0.00032969,4]
[341529618,1730961105480,-517.36,0.00032969,4]
[341529619,1730961105489,-1007.47,0.00032969,4]
[341529620,1730961105498,-500.0,0.00032969,4]
[341529621,1730961105507,-500.0,0.00032969,4]
[341529622,1730961105517,-2170.78,0.00032969,4]
[341529623,1730961105526,-4439.07,0.00032969,4]
[341529624,1730961105536,-1969.43,0.00032969,4]
[341529625,1730961105547,-500.0,0.00032969,4]
[341529626,1730961105557,-500.0,0.00032969,4]
[341529627,1730961105567,-500.0,0.00032969,4]
[341529628,1730961105576,-909.27,0.00032969,4]
[341529629,1730961105586,-582.09,0.00032969,4]
[341529630,1730961105596,-500.0,0.00032969,4]
[341529631,1730961105605,-697.39,0.00032969,4]
[341529632,1730961105615,-358.89675962,0.00032969,4]
[341529633,1730961105625,-1515.53,0.00032969,4]
[341529634,1730961105635,-500.0,0.00032969,4]
[341529635,1730961105645,-500.0,0.00032969,4]
[341529636,1730961105655,-500.0,0.00032969,4]
[341529637,1730961105665,-500.0,0.00032969,4]
[341529638,1730961105674,-512.81,0.00032969,4]
[341529639,1730961105684,-1099.94,0.00032969,4]
[341529640,1730961105694,-2033.92,0.00032969,4]
[341529641,1730961105704,-500.0,0.00032969,4]
[341529642,1730961105713,-1417.3,0.00032969,4]
[341529643,1730961105723,-500.0,0.00032969,4]
[341529644,1730961105733,-500.0,0.00032969,4]
[341529645,1730961105742,-944.64,0.00032969,4]
[341529646,1730961105753,-1101.72,0.00032969,4]
[341529647,1730961105762,-500.0,0.00032969,4]
[341529648,1730961105772,-525.27,0.00032969,4]
[341529649,1730961105783,-500.0,0.00032969,4]
[341529650,1730961105792,-227.21522327,0.00032969,4]
[341529651,1730961105804,-500.0,0.00032969,4]
[341529652,1730961105814,-742.32,0.00032969,4]
[341529653,1730961105824,-1345.45,0.00032969,4]
[341529654,1730961105833,-2391.27,0.00032969,4]
[341529655,1730961105843,-500.0,0.00032969,4]
[341529656,1730961105854,-711.47,0.00032969,4]
[341529657,1730961105865,-500.0,0.00032969,4]
[341529658,1730961105875,-500.0,0.00032969,4]
[341529659,1730961105884,-500.0,0.00032969,4]
[341529660,1730961105894,-500.0,0.00032969,4]
[341529661,1730961105903,-4222.21,0.00032969,4]
[341529662,1730961105913,-1267.94,0.00032969,4]
[341529663,1730961105923,-500.0,0.00032969,4]
[341529664,1730961105933,-500.0,0.00032969,4]
[341529665,1730961105943,-500.0,0.00032969,4]
[341529666,1730961105952,-500.0,0.00032969,4]
[341529667,1730961105962,-500.0,0.00032969,4]
[341529668,1730961105971,-1558.71,0.00032969,4]
[341529669,1730961105981,-500.0,0.00032969,4]
[341529670,1730961105991,-598.45,0.00032969,4]
[341529671,1730961106000,-2825.94,0.00032969,4]
[341529672,1730961106010,-500.0,0.00032969,4]
[341529673,1730961106019,-500.0,0.00032969,4]
[341529674,1730961106028,-1164.27,0.00032969,4]
[341529675,1730961106037,-1240.15,0.00032969,4]
[341529676,1730961106049,-500.0,0.00032969,4]
[341529677,1730961106058,-500.0,0.00032969,4]
[341529678,1730961106068,-3926.19,0.00032969,4]
[341529679,1730961106077,-1350.58,0.00032969,4]
[341529680,1730961106087,-505.49,0.00032969,4]
[341529681,1730961106096,-283.0093096,0.00032969,4]
[341529682,1730961106106,-2124.83,0.00032969,4]
[341529683,1730961106116,-500.0,0.00032969,4]
[341529684,1730961106125,-7719.24,0.00032969,4]
[341529685,1730961106135,-3366.87,0.00032969,4]
[341529686,1730961106144,-500.0,0.00032969,4]
[341529687,1730961106154,-379.46533265,0.00032969,4]
[341529688,1730961107239,-500.0,0.00031497,4]
[341529689,1730961107249,-3233.08293066,0.00031599,2]
[341529690,1730961107259,-150.0,0.00031647,2]
[341529691,1730961107269,-48.16448463,0.00031708,2]
[341529692,1730961107281,-101.83551537,0.00031708,2]
[341529693,1730961107290,-500.0,0.00031771,4]
[341529694,1730961107300,-150.0,0.00031799,2]
[341529695,1730961107310,-150.0,0.00031804,2]
[341529696,1730961107320,-500.0,0.00032045,4]
[341529697,1730961107333,-62.10665128,0.00032319,4]
[341529698,1730961107345,-437.89334872,0.00032319,4]
[341529699,1730961107354,-500.0,0.00032593,4]
[341529700,1730961107364,-500.0,0.00032867,4]
[341529701,1730961107374,-120.53466735,0.00032969,4]
[341529702,1730961107384,-449.55857393,0.00032969,4]
[341529703,1730961107416,150.0,0.00018123,2]
[341529704,1730961107435,-500.0,0.00031497,2]
[341529705,1730961107445,-50.44142607,0.00032969,4]
[341529706,1730961107455,-416.9396094,0.00032969,4]
[341529707,1730961107495,-500.0,0.00031497,2]
[341529708,1730961107504,-500.0,0.00031497,2]
[341529709,1730961107514,-102.6503906,0.00032969,4]
[341529710,1730961107524,-500.0,0.00032969,4]
[341529711,1730961107535,-4163.98,0.00032969,4]
[341529712,1730961107545,-1312.11,0.00032969,4]
[341529713,1730961107554,-685.11,0.00032969,4]
[341529714,1730961107564,-500.0,0.00032969,4]
[341529715,1730961107573,-903.28,0.00032969,4]
[341529716,1730961107583,-500.0,0.00032969,4]
[341529717,1730961107593,-500.0,0.00032969,4]
[341529718,1730961107603,-628.07,0.00032969,4]
[341529719,1730961107612,-500.0,0.00032969,4]
[341529720,1730961107621,-2598.6983306,0.00032969,4]
[341529721,1730961107634,-703.5816694,0.00032969,4]
[341529722,1730961107644,-102.82880857,0.00032969,4]
[341529723,1730961107659,-440.33119143,0.00032969,4]
[341529724,1730961107669,-1156.76,0.00032969,4]
[341529725,1730961107679,-500.0,0.00032969,4]
[341529726,1730961107688,-530.71369552,0.00032969,4]
[341529727,1730961107698,-1244.12,0.00032969,4]
[341529728,1730961107708,-663.83,0.00032969,4]
[341529729,1730961107717,-1036.87,0.00032969,4]
[341529730,1730961107726,-777.47,0.00032969,4]
[341529731,1730961107736,-1126.20511305,0.00032999,4]
[341529732,1730961107748,-416.81488695,0.00032999,4]
[341529733,1730961107757,-6942.05954727,0.00033,2]
[341529734,1730961107767,-900.0,0.00033,34]
[341529735,1730961107776,-1143.1357188,0.00033,120]
[341529736,1730961107792,-3408.9310497,0.00033,120]
[341529737,1730961107802,-472.37306908,0.00033,2]
[341529738,1730961133626,150.0,0.00018123,2]
[341529740,1730961170285,151.28882876,0.00018123,2]
[341529741,1730961398312,150.0,0.00020001,2]
[341529742,1730961402545,178.323,0.00017632,2]
[341529744,1730961430039,161.62,0.00015342,2]
[341529745,1730961602107,300.0,0.00019725,2]
[341529746,1730961648927,156.37,0.00016712,2]
[341529747,1730961652986,4033.01,0.0002,2]
[341529748,1730961653010,466.989999,0.0002,2]
[341529750,1730961944028,157.11,0.00015342,2]
[341529751,1730962106489,-250.0,0.00021,2]
[341529752,1730962106510,-2092.0,0.000228,2]
[341529753,1730962147143,-806.3019776,0.00022785,2]
[341529754,1730962150100,-1042.5309134,0.00022785,2]
[341529755,1730962150120,-212.04638781,0.000228,2]
[341529756,1730962150143,-5959.77915297,0.000229,2]
[341529757,1730962150165,-300.0,0.00023,2]
[341529758,1730962150186,-179.26049541,0.00023351,2]
[341529759,1730962150207,-6553.91718905,0.00023451,2]
[341529760,1730962150227,-160.53,0.00023451,2]
[341529761,1730962150247,-6469.0,0.00023773,2]
[341529762,1730962150266,-299.99,0.00024121,7]
[341529763,1730962150289,-180.26,0.00024121,5]
[341529764,1730962150309,-1000.0,0.00024364,2]
[341529765,1730962150330,-179.26049541,0.00024541,2]
[341529766,1730962150350,-150.0,0.00024904,2]
[341529767,1730962150371,-500.0,0.00024932,2]
[341529768,1730962150395,-350.0,0.00025,2]
[341529769,1730962150415,-304.0,0.00025443,2]
[341529770,1730962150435,-4789.99,0.00025444,2]
[341529771,1730962150455,-999.99,0.00025444,2]
[341529772,1730962150477,-1076.3142,0.00025444,2]
[341529773,1730962150496,-1000.0,0.00025644,2]
[341529774,1730962150752,-944.0,0.000257,2]
[341529775,1730962150781,-1323.56,0.00025748,2]
[341529776,1730962150801,-1980.0,0.000258,2]
[341529777,1730962150822,-400.0,0.00027,2]
[341529778,1730962150842,-1551.37,0.00027114,2]
[341529779,1730962150863,-1551.37,0.00027549,2]
[341529780,1730962150885,-500.0,0.00027783,2]
[341529781,1730962150908,-196.14,0.00027817,120]
[341529782,1730962150931,-164.21,0.00027841,2]
[341529783,1730962150951,-300.0,0.00027841,2]
[341529784,1730962150972,-250.0,0.00027866,2]
[341529785,1730962150994,-3238.08,0.0002792,2]
[341529786,1730962151015,-167.69,0.0002792,2]
[341529787,1730962151034,-2235.34,0.00027967,2]
[341529788,1730962151056,-461.9,0.00027971,2]
[341529789,1730962151076,-1551.37,0.00027985,2]
[341529790,1730962151097,-1323.56,0.00028012,2]
[341529791,1730962151118,-1022.65,0.00028143,2]
[341529792,1730962151141,-200.0,0.00028376,7]
[341529793,1730962151163,-1551.37,0.0002842,2]
[341529794,1730962151183,-3010.56,0.00028555,2]
[341529795,1730962151203,-927.63,0.00028642,2]
[341529796,1730962151222,-2132.82554658,0.00028649,2]
[341529797,1730962158103,-4826.78893052,0.00028649,2]
[341529798,1730962158125,-23900.0,0.0002865,2]
[341529799,1730962158152,-268.02,0.00028655,2]
[341529800,1730962158172,-250.0,0.00028658,2]
[341529801,1730962159117,-429.95,0.000287,2]
[341529803,1730962188716,156.37,0.00016712,2]
[341529812,1730962231537,-1551.37,0.00028856,2]
[341529813,1730962231547,-161.62,0.00028858,2]
[341529814,1730962231557,-250.0,0.00028888,2]
[341529815,1730962231566,-200.0,0.00028913,2]
[341529816,1730962231575,-161.94,0.00028947,2]
[341529817,1730962231584,-450.0,0.00029,2]
[341529818,1730962231593,-198.98,0.00029211,30]
[341529819,1730962231604,-1551.37,0.00029292,2]
[341529820,1730962231613,-375.48,0.00029342,2]
[341529821,1730962231622,-200.0,0.00029512,2]
[341529822,1730962231632,-1728.19,0.00029565,2]
[341529823,1730962231642,-174.76,0.00029607,2]
[341529824,1730962231651,-360.66,0.00029607,120]
[341529825,1730962231661,-500.0,0.00029659,2]
[341529826,1730962231671,-500.0,0.00029659,2]
[341529827,1730962231680,-500.0,0.00029659,2]
[341529828,1730962231689,-470.58462207,0.00029659,2]
[341529829,1730962231698,-168.22,0.00029674,2]
[341529830,1730962231711,-1551.37,0.00029727,2]
[341529831,1730962231720,-5069.25,0.00029753,2]
[341529832,1730962231729,-152.0,0.00029897,3]
[341529833,1730962231738,-509.27525,0.0003,2]
[341529834,1730962231749,-509.27525,0.0003,2]
[341529835,1730962231759,-170.5365,0.0003,2]
[341529836,1730962231768,-170.5365,0.0003,2]
[341529837,1730962231777,-151.0,0.0003,120]
[341529838,1730962231786,-171.21,0.0003,2]
[341529839,1730962231795,-150.99,0.0003,2]
[341529840,1730962231804,-209.43975,0.0003,2]
[341529841,1730962231813,-279.80575,0.0003,2]
[341529842,1730962231823,-279.80575,0.0003,2]
[341529843,1730962231832,-166.52,0.00030009,2]
[341529844,1730962231841,-173.3,0.00030137,2]
[341529845,1730962231850,-1551.37,0.00030163,2]
[341529846,1730962231860,-1323.56,0.00030276,2]
[341529847,1730962231870,-152.0,0.00030746,4]
[341529848,1730962231879,-375.48,0.00030809,2]